bitfinex/quotes_BTCUSD_20250211
["timestamp","ask_amount","ask_price","bid_price","bid_amount"]
[1739307716595,0.156842,95638.0,95630.0,0.006]
[1739307716974,0.2091,95648.0,95630.0,0.011]
[1739307717335,0.156836,95642.0,95630.0,0.006]
[1739307717538,0.156839,95640.0,95630.0,0.006]
[1739307717819,0.156839,95640.0,95626.0,0.209146]
[1739307717820,0.156842,95638.0,95626.0,0.156859]
[1739307718042,0.156842,95638.0,95627.0,0.10250365]
[1739307718272,0.151843,95637.0,95627.0,0.10250365]
[1739307718874,0.156841,95639.0,95630.0,0.008]
[1739307719103,0.156841,95639.0,95630.0,0.012]
[1739307719254,0.156841,95639.0,95627.0,0.10250365]
[1739307719453,0.156839,95639.0,95627.0,0.10950365]
[1739307719654,0.156837,95641.0,95627.0,0.11950365]
[1739307719858,0.156834,95643.0,95628.0,0.23967704]
[1739307720179,0.15,95654.0,95630.0,0.006]
[1739307720389,0.15,95652.0,95627.0,0.01]
[1739307720539,0.156833,95643.0,95631.0,0.10250365]
[1739307720753,0.156835,95642.0,95631.0,0.10250365]
[1739307721322,0.01946014,95652.0,95631.0,0.10250365]
[1739307721497,0.15682,95651.0,95635.0,0.0789]
[1739307721712,0.209086,95654.0,95636.0,0.10250365]
[1739307721915,0.15,95652.0,95636.0,0.10250365]
[1739307722506,0.156827,95647.0,95636.0,0.10250365]
[1739307722879,0.156823,95649.0,95636.0,0.10250365]
[1739307722994,0.156825,95648.0,95636.0,0.10350365]
[1739307723202,0.156825,95648.0,95636.0,0.10250365]
[1739307723399,0.156825,95648.0,95635.0,0.0789]
[1739307723400,0.14871167,95646.0,95628.0,0.0789]
[1739307723610,0.156854,95631.0,95628.0,0.18140365]
[1739307723839,0.14871167,95650.0,95628.0,0.10250365]
[1739307724081,0.14871167,95650.0,95636.0,0.002]
[1739307724300,0.2091,95648.0,95636.0,0.002]
[1739307724535,0.156843,95637.0,95636.0,0.002]
[1739307725182,0.15684,95639.0,95636.0,0.002]
[1739307725381,0.14871167,95650.0,95636.0,0.002]
[1739307725596,0.156841,95638.0,95636.0,0.002]
[1739307725811,0.2091,95648.0,95628.0,0.10250365]
[1739307726015,0.156849,95633.0,95628.0,0.004]
[1739307726166,0.156847,95635.0,95628.0,0.004]
[1739307726368,0.156851,95633.0,95621.0,0.16292876]
[1739307726571,0.156843,95637.0,95636.0,0.002]
[1739307726971,0.156843,95637.0,95621.0,0.16292876]
[1739307727307,0.14871167,95640.0,95628.0,0.004]
[1739307727504,0.156839,95639.0,95628.0,0.004]
[1739307727704,0.15685,95633.0,95621.0,0.16292876]
[1739307727911,0.156851,95633.0,95628.0,0.005]
[1739307728152,0.156847,95635.0,95628.0,0.005]
[1739307728307,0.15685,95633.0,95628.0,0.005]
[1739307728709,0.156849,95634.0,95628.0,0.005]
[1739307728914,0.156849,95634.0,95621.0,0.16292876]
[1739307728915,0.05344631,95634.0,95621.0,0.16292876]
[1739307729094,0.15685,95633.0,95621.0,0.16292876]
[1739307729319,0.05344631,95634.0,95621.0,0.16292876]
[1739307729539,0.156846,95635.0,95621.0,0.0789]
[1739307729700,0.16977539,95640.0,95636.0,0.004]
[1739307729932,0.01977539,95640.0,95630.0,0.156853]
[1739307730290,0.01638804,95655.0,95630.0,0.156853]
[1739307730291,0.17320104,95655.0,95634.0,0.0491]
[1739307730491,0.01638804,95655.0,95637.0,0.156841]
[1739307730691,0.01638804,95655.0,95639.0,0.156839]
[1739307730933,0.15,95653.0,95638.0,0.15684]
[1739307731182,0.01638804,95655.0,95641.0,0.156836]
[1739307731384,0.01638804,95655.0,95642.0,0.10250365]
[1739307731939,0.17320204,95655.0,95642.0,0.10250365]
[1739307732193,0.156815,95654.0,95642.0,0.10250365]
[1739307732615,0.156818,95652.0,95642.0,0.10250365]
[1739307732828,0.156825,95648.0,95635.0,0.08402876]
[1739307732959,0.15,95653.0,95638.0,0.001]
[1739307732960,0.156824,95649.0,95638.0,0.001]
[1739307733155,0.209093,95651.0,95636.0,0.10250365]
[1739307733355,0.03756144,95651.0,95636.0,0.10250365]
[1739307733567,0.156827,95647.0,95642.0,0.001]
[1739307733771,0.156828,95646.0,95636.0,0.10250365]
[1739307733965,0.209098,95649.0,95636.0,0.10250365]
[1739307734170,0.14871167,95650.0,95638.0,0.004]
[1739307734373,0.14871167,95650.0,95636.0,0.10250365]
[1739307734576,0.14871167,95650.0,95633.0,0.0786]
[1739307734577,0.20115511,95650.0,95633.0,0.0786]
[1739307734793,0.20115511,95650.0,95627.0,0.00022344]
[1739307734794,0.14871167,95644.0,95642.0,0.005]
[1739307735020,0.20911,95643.0,95642.0,0.005]
[1739307735220,0.35911,95643.0,95642.0,0.005]
[1739307735427,0.37352626,95643.0,95642.0,0.005]
[1739307735748,0.71599226,95643.0,95642.0,0.005]
[1739307735872,0.15,95642.0,95636.0,0.002]
[1739307736059,0.15,95640.0,95627.0,0.00022344]
[1739307736265,0.156857,95629.0,95627.0,0.00022344]
[1739307736486,0.156857,95628.0,95627.0,0.00022344]
[1739307737561,0.156857,95628.0,95627.0,0.00622344]
[1739307737764,0.156857,95628.0,95627.0,0.00022344]
[1739307738132,0.209134,95633.0,95627.0,0.00022344]
[1739307738331,0.01638863,95634.0,95627.0,0.00022344]
[1739307738332,0.156856,95629.0,95627.0,0.00022344]
[1739307738533,0.156857,95628.0,95627.0,0.00022344]
[1739307738728,0.156857,95628.0,95627.0,0.00822344]
[1739307739179,0.156857,95628.0,95627.0,0.01422344]
[1739307739396,0.156857,95628.0,95627.0,0.00622344]
[1739307739580,0.156857,95628.0,95627.0,0.01422344]
[1739307741220,0.156857,95628.0,95627.0,0.00622344]
[1739307741605,0.156857,95628.0,95627.0,0.01422344]
[1739307742391,0.306857,95628.0,95627.0,0.01422344]
[1739307742742,0.306857,95628.0,95627.0,0.00622344]
[1739307743083,0.40936065,95628.0,95627.0,0.00822344]
[1739307743329,0.40936065,95628.0,95627.0,0.01422344]
[1739307743718,0.87445965,95628.0,95627.0,0.00822344]
[1739307743892,0.91669735,95628.0,95627.0,0.00822344]
[1739307744097,0.88445965,95628.0,95627.0,0.00822344]
[1739307744418,0.75568932,95628.0,95627.0,0.00022344]
[1739307745503,0.78792702,95628.0,95627.0,0.00022344]
[1739307745720,0.79792702,95628.0,95627.0,0.00022344]
[1739307745927,0.83731907,95628.0,95627.0,0.00022344]
[1739307746285,0.98731907,95628.0,95627.0,0.00022344]
[1739307746688,0.98731907,95628.0,95596.0,0.08402876]
[1739307746689,0.156908,95597.0,95596.0,0.08402876]
[1739307747258,0.156917,95592.0,95585.0,0.081]
[1739307747459,0.16510569,95600.0,95585.0,0.081]
[1739307747665,0.156918,95591.0,95585.0,0.081]
[1739307747863,0.03743027,95599.0,95585.0,0.08113338]
[1739307748060,0.156926,95586.0,95585.0,0.08113338]
[1739307748265,0.156926,95586.0,95585.0,0.00013338]
[1739307748897,0.17332148,95586.0,95585.0,0.00813338]
[1739307750376,0.21349723,95586.0,95585.0,0.00013338]
[1739307750743,0.21349723,95586.0,95585.0,0.00313338]
[1739307750916,0.21349723,95586.0,95585.0,0.01013338]
[1739307751259,0.21349723,95586.0,95585.0,0.00013338]
[1739307751447,0.21349723,95586.0,95585.0,0.00413338]
[1739307755875,0.21349723,95586.0,95585.0,0.00435703]
[1739307757660,0.94549623,95586.0,95585.0,0.00435703]
[1739307757870,0.47386523,95586.0,95585.0,0.25435703]
[1739307758187,0.03564048,95586.0,95585.0,0.25435703]
[1739307758389,0.15871167,95610.0,95585.0,0.32975703]
[1739307758575,0.156913,95595.0,95585.0,0.32975703]
[1739307758995,0.156916,95593.0,95585.0,0.32975703]
[1739307759205,0.156917,95592.0,95585.0,0.32975703]
[1739307759580,0.0156917,95591.0,95585.0,0.32975703]
[1739307759872,0.15,95612.0,95585.0,0.32775703]
[1739307760104,0.015,95610.0,95587.0,0.0754]
[1739307760337,0.156889,95609.0,95589.0,0.0754]
[1739307760573,0.15,95617.0,95589.0,0.17790365]
[1739307760775,0.15,95619.0,95589.0,0.17790365]
[1739307760776,0.004,95610.0,95589.0,0.17790365]
[1739307761037,0.024749,95620.0,95592.0,0.0493]
[1739307761279,0.024749,95620.0,95593.0,0.0754]
[1739307761280,0.15071167,95610.0,95593.0,0.0754]
[1739307761495,0.002,95610.0,95593.0,0.17790365]
[1739307761715,0.002,95610.0,95594.0,0.02272037]
[1739307761944,0.002,95610.0,95593.0,0.0754]
[1739307762181,0.156893,95607.0,95593.0,0.0754]
[1739307762899,0.14871167,95610.0,95593.0,0.0754]
[1739307763106,0.1569,95603.0,95593.0,0.0754]
[1739307763325,0.209195,95605.0,95593.0,0.0754]
[1739307763581,0.209195,95605.0,95593.0,0.0804]
[1739307763842,0.156901,95602.0,95593.0,0.0804]
[1739307764079,0.156899,95603.0,95593.0,0.0784]
[1739307764291,0.156899,95603.0,95593.0,0.0754]
[1739307764510,0.001,95603.0,95593.0,0.0844]
[1739307764720,0.001,95603.0,95593.0,0.0874]
[1739307764950,0.1569,95602.0,95593.0,0.0844]
[1739307765224,0.1569,95602.0,95593.0,0.0894]
[1739307765487,0.001,95603.0,95593.0,0.0894]
[1739307765983,0.156897,95604.0,95593.0,0.0804]
[1739307766228,0.001,95602.0,95593.0,0.0884]
[1739307766467,0.001,95602.0,95593.0,0.09717]
[1739307766702,0.18104227,95607.0,95593.0,0.09417]
[1739307766961,0.001,95603.0,95593.0,0.0904]
[1739307767231,0.001,95603.0,95595.0,0.156911]
[1739307767493,0.04115015,95610.0,95596.0,0.10250365]
[1739307767671,0.001,95602.0,95596.0,0.10250365]
[1739307768455,0.001,95602.0,95597.0,0.0754]
[1739307768650,0.001,95602.0,95597.0,0.17790365]
[1739307769801,0.156886,95611.0,95597.0,0.17790365]
[1739307770004,0.001,95603.0,95597.0,0.17790365]
[1739307770218,0.001,95603.0,95597.0,0.18390365]
[1739307770612,0.18103281,95611.0,95597.0,0.18390365]
[1739307770802,0.001,95602.0,95597.0,0.19390365]
[1739307771091,0.001,95602.0,95597.0,0.11250365]
[1739307771332,0.02414681,95611.0,95598.0,0.0769]
[1739307771557,0.001,95603.0,95598.0,0.0769]
[1739307773116,0.156884,95612.0,95598.0,0.0769]
[1739307773592,0.156884,95612.0,95598.0,0.0829]
[1739307773807,0.001,95602.0,95598.0,0.0829]
[1739307774159,0.156885,95612.0,95598.0,0.0769]
[1739307774684,0.156886,95611.0,95598.0,0.0829]
[1739307774892,0.02448182,95614.0,95598.0,0.0829]
[1739307775091,0.20918,95612.0,95598.0,0.0829]
[1739307775526,0.156887,95610.0,95598.0,0.0829]
[1739307775955,0.156887,95610.0,95598.0,0.0769]
[1739307776175,0.156889,95609.0,95598.0,0.0889]
[1739307776315,0.156889,95609.0,95598.0,0.0829]
[1739307776712,0.156889,95609.0,95598.0,0.0819]
[1739307776912,0.001,95610.0,95598.0,0.0849]
[1739307777155,0.157887,95610.0,95598.0,0.0849]
[1739307777366,0.156887,95610.0,95598.0,0.0819]
[1739307777691,0.156887,95611.0,95598.0,0.0899]
[1739307777894,0.001,95609.0,95598.0,0.0899]
[1739307778906,0.001,95609.0,95598.0,0.0849]
[1739307779117,0.156884,95612.0,95598.0,0.0819]
[1739307779431,0.001,95610.0,95598.0,0.0849]
[1739307779758,0.001,95610.0,95598.0,0.0909]
[1739307779965,0.156884,95612.0,95598.0,0.0769]
[1739307780218,0.157884,95612.0,95598.0,0.0849]
[1739307780463,0.21018,95612.0,95598.0,0.0899]
[1739307780696,0.156887,95611.0,95598.0,0.0849]
[1739307780920,0.001,95612.0,95598.0,0.0849]
[1739307781163,0.157884,95612.0,95598.0,0.0849]
[1739307781398,0.156885,95611.0,95598.0,0.0849]
[1739307781624,0.001,95612.0,95598.0,0.0849]
[1739307781835,0.001,95612.0,95598.0,0.0899]
[1739307782077,0.001,95612.0,95598.0,0.11409273]
[1739307782312,0.156885,95612.0,95598.0,0.10109273]
[1739307782555,0.001,95611.0,95598.0,0.11409273]
[1739307782812,0.156887,95610.0,95598.0,0.0899]
[1739307783026,0.17331145,95620.0,95598.0,0.0769]
[1739307783236,0.156905,95599.0,95598.0,0.0819]
[1739307783437,0.156905,95599.0,95598.0,0.013]
[1739307783645,0.688839,95599.0,95598.0,0.008]
[1739307783894,0.306908,95597.0,95596.0,0.00022365]
[1739307784094,1.08556365,95597.0,95596.0,0.00022365]
[1739307784292,0.86158265,95597.0,95596.0,0.00022365]
[1739307784470,0.82141065,95597.0,95596.0,0.00022365]
[1739307784651,0.40941165,95597.0,95596.0,0.00022365]
[1739307785071,0.306908,95597.0,95596.0,0.00022365]
[1739307785893,0.156908,95597.0,95596.0,0.00022365]
[1739307786155,0.157908,95597.0,95596.0,0.00022365]
[1739307786390,0.156908,95597.0,95596.0,0.00022365]
[1739307786757,0.158908,95597.0,95596.0,0.00022365]
[1739307786981,0.166908,95597.0,95596.0,0.00122365]
[1739307787528,0.158908,95597.0,95596.0,0.00022365]
[1739307788145,0.156908,95597.0,95596.0,0.00022365]
[1739307788541,0.156908,95597.0,95596.0,0.00122365]
[1739307788905,0.156908,95597.0,95596.0,0.00022365]
[1739307789109,0.25941165,95597.0,95596.0,0.00022365]
[1739307789385,0.25941165,95597.0,95596.0,0.00122365]
[1739307789591,0.25941165,95597.0,95596.0,0.00022365]
[1739307790017,0.25941165,95597.0,95596.0,0.00122365]
[1739307790253,0.26641165,95597.0,95596.0,0.00222365]
[1739307790699,0.25941165,95597.0,95596.0,0.00122365]
[1739307790987,0.41441165,95597.0,95596.0,0.00122365]
[1739307791163,0.41441165,95597.0,95596.0,0.00022365]
[1739307791630,0.41541165,95597.0,95596.0,0.00022365]
[1739307791810,0.44664935,95597.0,95596.0,0.00022365]
[1739307792089,0.45644599,95597.0,95596.0,0.00022365]
[1739307792309,0.45344599,95597.0,95596.0,0.00022365]
[1739307792528,0.46044599,95597.0,95596.0,0.00122365]
[1739307792701,1.04391799,95597.0,95596.0,0.00122365]
[1739307792897,1.03691799,95597.0,95596.0,0.00022365]
[1739307793207,0.85252529,95597.0,95596.0,0.00022365]
[1739307793785,0.84752529,95597.0,95596.0,0.00022365]
[1739307794107,0.85252529,95597.0,95596.0,0.00022365]
[1739307794341,0.84952529,95597.0,95596.0,0.00022365]
[1739307794545,0.85052529,95597.0,95596.0,0.00022365]
[1739307795295,0.84952529,95597.0,95596.0,0.00022365]
[1739307795748,0.84552529,95597.0,95596.0,0.00022365]
[1739307796128,0.85052529,95597.0,95596.0,0.00022365]
[1739307797864,0.92026299,95597.0,95596.0,0.00022365]
[1739307798117,0.91926299,95597.0,95596.0,0.00022365]
[1739307798327,0.92026299,95597.0,95596.0,0.00022365]
[1739307798668,0.91426299,95597.0,95596.0,0.00022365]
[1739307798869,0.93483091,95597.0,95596.0,0.00022365]
[1739307799107,0.93983091,95597.0,95596.0,0.00022365]
[1739307799512,0.90259321,95597.0,95596.0,0.00022365]
[1739307799916,0.90759321,95597.0,95596.0,0.00022365]
[1739307800856,0.92399084,95597.0,95596.0,0.00022365]
[1739307800993,0.90442292,95597.0,95596.0,0.00022365]
[1739307801190,0.86692292,95597.0,95596.0,0.00022365]
[1739307801618,0.59189392,95597.0,95596.0,0.00022365]
[1739307801829,0.60025392,95597.0,95596.0,0.00022365]
[1739307802809,0.59525392,95597.0,95596.0,0.00022365]
[1739307803029,0.58545728,95597.0,95596.0,0.00022365]
[1739307803230,0.59045728,95597.0,95596.0,0.00022365]
[1739307803476,0.56745728,95597.0,95596.0,0.00022365]
[1739307804365,0.56645728,95597.0,95596.0,0.00022365]
[1739307804521,0.56745728,95597.0,95596.0,0.00022365]
[1739307805924,0.59680858,95597.0,95596.0,0.00022365]
[1739307809477,0.59680858,95597.0,95596.0,0.07572365]
[1739307809478,0.44476295,95597.0,95596.0,0.07572365]
[1739307810628,0.44476295,95597.0,95596.0,0.00022365]
[1739307811069,0.44376295,95597.0,95596.0,0.00022365]
[1739307811278,0.43876295,95597.0,95596.0,0.00022365]
[1739307811471,1.07157695,95597.0,95596.0,0.00022365]
[1739307811806,0.76503195,95597.0,95596.0,0.00022365]
[1739307812012,0.59604595,95597.0,95596.0,0.00022365]
[1739307812625,0.61244355,95597.0,95596.0,0.00022365]
[1739307814247,0.60844355,95597.0,95596.0,0.00022365]
[1739307814706,0.61244355,95597.0,95596.0,0.00022365]
[1739307815378,0.156926,95586.0,95584.0,0.0755]
[1739307815616,0.25942965,95586.0,95584.0,0.0755]
[1739307816187,0.27582745,95586.0,95584.0,0.0755]
[1739307817560,0.27582745,95586.0,95585.0,0.25435703]
[1739307817782,0.28561118,95586.0,95585.0,0.25735703]
[1739307820503,0.30731529,95586.0,95585.0,0.25735703]
[1739307823212,0.20481164,95586.0,95585.0,0.25735703]
[1739307835246,0.30731529,95586.0,95585.0,0.25735703]
[1739307836475,0.32696502,95586.0,95585.0,0.25735703]
[1739307838041,0.22446137,95586.0,95585.0,0.38415703]
[1739307838247,0.05113757,95586.0,95585.0,0.38415703]
[1739307838497,0.05113757,95586.0,95585.0,0.38115703]
[1739307838696,0.05113757,95586.0,95585.0,0.38215703]
[1739307839032,0.05113757,95586.0,95585.0,0.38115703]
[1739307839238,0.05113757,95586.0,95585.0,0.38415703]
[1739307839449,0.05113757,95586.0,95585.0,0.38015703]
[1739307839880,0.05213757,95586.0,95585.0,0.38015703]
[1739307840379,0.05113757,95586.0,95585.0,0.38015703]
[1739307840804,0.05113757,95586.0,95585.0,0.38415703]
[1739307841369,0.02943346,95586.0,95585.0,0.38415703]
[1739307841723,0.23039564,95600.0,95586.0,0.0817]
[1739307841931,0.08402876,95643.0,95586.0,0.0817]
[1739307841932,0.209199,95603.0,95586.0,0.0817]
[1739307842104,0.209208,95599.0,95586.0,0.0817]
[1739307842448,0.156904,95600.0,95586.0,0.0817]
[1739307842604,0.156911,95596.0,95586.0,0.0817]
[1739307843012,0.156911,95596.0,95586.0,0.0827]
[1739307843220,0.156908,95597.0,95586.0,0.0827]
[1739307843464,0.156911,95596.0,95586.0,0.0817]
[1739307843615,0.0204592,95605.0,95586.0,0.0817]
[1739307843815,0.003,95596.0,95586.0,0.0817]
[1739307844015,0.156913,95595.0,95586.0,0.0817]
[1739307844229,0.209213,95597.0,95586.0,0.0817]
[1739307844635,0.156912,95595.0,95586.0,0.0817]
[1739307844861,0.209213,95597.0,95586.0,0.0817]
[1739307845195,0.209213,95597.0,95586.0,0.0837]
[1739307845406,0.156911,95596.0,95586.0,0.0817]
[1739307845614,0.209196,95604.0,95586.0,0.0837]
[1739307845815,0.209196,95604.0,95586.0,0.0857]
[1739307846022,0.156912,95595.0,95586.0,0.0837]
[1739307846362,0.209196,95604.0,95586.0,0.0837]
[1739307846567,0.209198,95603.0,95586.0,0.0867]
[1739307846768,0.156915,95593.0,95586.0,0.0867]
[1739307846976,0.15692,95590.0,95586.0,0.0837]
[1739307847195,0.15692,95590.0,95586.0,0.0877]
[1739307847454,0.156918,95591.0,95586.0,0.0857]
[1739307847817,0.156918,95592.0,95586.0,0.0857]
[1739307848018,0.12710906,95601.0,95586.0,0.0857]
[1739307848223,0.156916,95593.0,95586.0,0.0857]
[1739307848423,0.156917,95592.0,95586.0,0.0887]
[1739307848662,0.209217,95595.0,95586.0,0.0817]
[1739307848888,0.20922,95593.0,95586.0,0.0817]
[1739307849085,0.001,95590.0,95586.0,0.0927]
[1739307849227,0.001,95590.0,95586.0,0.0897]
[1739307849587,0.156919,95591.0,95586.0,0.0817]
[1739307849807,0.156919,95591.0,95586.0,0.0837]
[1739307849955,0.209216,95595.0,95586.0,0.0837]
[1739307850161,0.156918,95591.0,95586.0,0.0817]
[1739307850363,0.156914,95594.0,95586.0,0.0817]
[1739307850540,0.156918,95592.0,95586.0,0.0837]
[1739307850756,0.001,95590.0,95586.0,0.0897]
[1739307851180,0.001,95590.0,95586.0,0.0917]
[1739307851380,0.001,95590.0,95586.0,0.0897]
[1739307851583,0.001,95590.0,95586.0,0.0937]
[1739307851851,0.0204592,95605.0,95586.0,0.0857]
[1739307852053,0.0204592,95605.0,95586.0,0.0817]
[1739307852252,0.15691,95596.0,95586.0,0.0897]
[1739307852458,0.209219,95594.0,95586.0,0.0897]
[1739307852575,0.156917,95592.0,95586.0,0.0867]
[1739307852779,0.156913,95594.0,95586.0,0.0867]
[1739307853204,0.156916,95593.0,95586.0,0.0867]
[1739307853549,0.156916,95593.0,95586.0,0.0817]
[1739307853754,0.001,95592.0,95586.0,0.0877]
[1739307853960,0.001,95592.0,95586.0,0.0907]
[1739307854096,0.001,95592.0,95586.0,0.0877]
[1739307854296,0.02059198,95592.0,95586.0,0.0917]
[1739307854723,0.02059198,95592.0,95586.0,0.0877]
[1739307855019,0.00979592,95591.0,95586.0,0.0857]
[1739307855269,0.00979592,95591.0,95586.0,0.0907]
[1739307855789,0.01959198,95590.0,95586.0,0.0857]
[1739307855994,0.01959198,95590.0,95586.0,0.0917]
[1739307856578,0.01959198,95590.0,95586.0,0.0817]
[1739307856744,0.00979592,95589.0,95586.0,0.0867]
[1739307856945,0.00979592,95589.0,95586.0,0.0897]
[1739307857148,0.00979592,95589.0,95586.0,0.0867]
[1739307857360,0.0293879,95589.0,95586.0,0.0867]
[1739307857718,0.0293879,95589.0,95586.0,0.0917]
[1739307857927,0.0293879,95589.0,95586.0,0.0867]
[1739307858160,0.0293879,95589.0,95586.0,0.0917]
[1739307858554,0.00979592,95588.0,95586.0,0.0867]
[1739307858911,0.00979592,95588.0,95586.0,0.0947]
[1739307859304,0.06073846,95588.0,95586.0,0.0867]
[1739307859678,0.06173846,95588.0,95586.0,0.0897]
[1739307859876,0.00979592,95587.0,95586.0,0.0947]
[1739307860117,0.06073846,95587.0,95586.0,0.0947]
[1739307860325,0.06073846,95587.0,95586.0,0.0897]
[1739307860582,0.06073846,95587.0,95586.0,0.0947]
[1739307860792,0.06073846,95587.0,95586.0,0.0897]
[1739307861211,0.06073846,95587.0,95586.0,0.0867]
[1739307861433,0.06073846,95587.0,95586.0,0.0817]
[1739307861641,0.06073846,95587.0,95586.0,0.0967]
[1739307862089,0.06073846,95587.0,95586.0,0.0877]
[1739307862246,0.06173846,95587.0,95586.0,0.0977]
[1739307865249,0.0303879,95587.0,95586.0,0.0977]
[1739307866282,0.0303879,95587.0,95586.0,0.09792386]
[1739307868745,0.0303879,95587.0,95586.0,0.39671396]
[1739307868967,0.0303879,95587.0,95586.0,0.44211396]
[1739307869365,0.01079592,95587.0,95586.0,0.40275351]
[1739307874070,0.12011011,95610.0,95587.0,0.076]
[1739307874282,0.156885,95611.0,95592.0,0.156915]
[1739307874486,0.156887,95610.0,95593.0,0.076]
[1739307874695,0.0205808,95614.0,95593.0,0.076]
[1739307874696,0.156892,95608.0,95593.0,0.076]
[1739307874900,0.156892,95608.0,95594.0,0.01785037]
[1739307876122,0.009,95610.0,95594.0,0.01785037]
[1739307876393,0.15689,95608.0,95594.0,0.01785037]
[1739307876549,0.15789,95608.0,95593.0,0.076]
[1739307877486,0.16389,95608.0,95593.0,0.076]
[1739307877687,0.0001066,95597.0,95593.0,0.076]
[1739307878939,0.0001066,95597.0,95593.0,0.079]
[1739307879682,0.0001066,95597.0,95593.0,0.081]
[1739307885314,0.0001066,95597.0,95594.0,0.0475]
[1739307885525,0.0001066,95597.0,95595.0,0.0829]
[1739307886654,0.0001066,95597.0,95595.0,0.0849]
[1739307887198,0.0001066,95597.0,95595.0,0.0869]
[1739307895509,0.0001066,95597.0,95596.0,0.10250365]
[1739307895669,0.0001066,95597.0,95596.0,0.33841365]
[1739307895870,0.0001066,95597.0,95596.0,0.38821365]
[1739307896766,0.0001066,95597.0,95596.0,0.39621365]
[1739307897178,0.0001066,95597.0,95596.0,0.38821365]
[1739307897386,0.0001066,95597.0,95596.0,0.4907173]
[1739307897592,0.0011066,95597.0,95596.0,0.5057173]
[1739307897790,0.0011066,95597.0,95596.0,0.40321365]
[1739307898595,0.11501573,95616.0,95610.0,0.079]
[1739307899957,0.11501573,95616.0,95610.0,0.082]
[1739307900577,0.156885,95611.0,95610.0,0.003]
[1739307901388,0.156885,95611.0,95610.0,0.001]
[1739307901792,0.156885,95611.0,95609.0,0.0088934]
[1739307901976,0.17652336,95611.0,95610.0,0.003]
[1739307902094,0.17652336,95611.0,95609.0,0.0088934]
[1739307902311,0.156887,95610.0,95609.0,0.0088934]
[1739307902645,0.1667058,95610.0,95609.0,0.0088934]
[1739307902846,0.1667058,95610.0,95609.0,0.0098934]
[1739307903315,0.18634416,95610.0,95609.0,0.0088934]
[1739307903673,0.18634416,95610.0,95609.0,0.0148934]
[1739307904739,0.18634416,95610.0,95609.0,0.0108934]
[1739307904946,0.18634416,95610.0,95609.0,0.0088934]
[1739307905149,0.18634416,95610.0,95609.0,0.0108934]
[1739307905524,0.18634416,95610.0,95609.0,0.0088934]
[1739307905757,0.18634416,95610.0,95609.0,0.0108934]
[1739307905950,0.28884781,95610.0,95609.0,0.0108934]
[1739307906155,0.28884781,95610.0,95609.0,0.0128934]
[1739307906806,0.28884781,95610.0,95609.0,0.0108934]
[1739307907168,0.28884781,95610.0,95609.0,0.0128934]
[1739307907568,0.28884781,95610.0,95609.0,0.0108934]
[1739307908019,0.3086141,95610.0,95609.0,0.0088934]
[1739307908453,0.3086141,95610.0,95609.0,0.0098934]
[1739307908659,0.3086141,95610.0,95609.0,0.0088934]
[1739307908862,0.3086141,95610.0,95609.0,0.0098934]
[1739307909472,0.34002959,95610.0,95609.0,0.0098934]
[1739307910563,1.64532863,95610.0,95609.0,0.0088934]
[1739307910974,1.64532863,95610.0,95609.0,0.0098934]
[1739307911184,0.156911,95595.0,95594.0,0.00022386]
[1739307911391,0.25941465,95595.0,95594.0,0.00022386]
[1739307912047,0.27581097,95595.0,95594.0,0.00022386]
[1739307912203,0.32686482,95595.0,95594.0,0.00022386]
[1739307912608,0.39660252,95595.0,95594.0,0.00022386]
[1739307912969,0.39660252,95595.0,95586.0,0.00022386]
[1739307912970,0.156925,95587.0,95586.0,0.00018985]
[1739307913174,1.48323365,95587.0,95586.0,0.00018985]
[1739307913380,0.15,95586.0,95585.0,0.21368316]
[1739307913590,0.40942965,95586.0,95585.0,0.21368316]
[1739307914003,0.4604835,95586.0,95585.0,0.21368316]
[1739307914210,0.5273432,95586.0,95585.0,0.21368316]
[1739307914461,0.5027212,95586.0,95585.0,0.21368316]
[1739307914629,2.1204262,95586.0,95585.0,0.21368316]
[1739307914840,1.9261032,95586.0,95585.0,0.21368316]
[1739307915063,1.9251032,95586.0,95585.0,0.21368316]
[1739307915275,1.9012702,95586.0,95585.0,0.21368316]
[1739307915485,1.7717372,95586.0,95585.0,0.21368316]
[1739307915695,1.73262933,95586.0,95585.0,0.21368316]
[1739307915856,1.72078633,95586.0,95585.0,0.21368316]
[1739307916281,1.20267813,95586.0,95585.0,0.21368316]
[1739307916480,1.19867813,95586.0,95585.0,0.21368316]
[1739307916775,1.26653783,95586.0,95585.0,0.21368316]
[1739307916976,1.20067813,95586.0,95585.0,0.21368316]
[1739307917357,1.19767813,95586.0,95585.0,0.21368316]
[1739307917560,1.20067813,95586.0,95585.0,0.21368316]
[1739307917968,0.50638643,95586.0,95585.0,0.21368316]
[1739307918865,1.55781543,95586.0,95585.0,0.21368316]
[1739307919067,1.17078143,95586.0,95585.0,0.21368316]
[1739307919543,1.17778143,95586.0,95585.0,0.21368316]
[1739307919714,1.21001913,95586.0,95585.0,0.21368316]
[1739307920519,1.20901913,95586.0,95585.0,0.21368316]
[1739307920723,1.21201913,95586.0,95585.0,0.21368316]
[1739307920933,0.96541543,95586.0,95585.0,0.21368316]
[1739307921351,0.96341543,95586.0,95585.0,0.21368316]
[1739307921539,0.95341543,95586.0,95585.0,0.21368316]
[1739307921746,0.81258863,95586.0,95585.0,0.21368316]
[1739307922751,0.81158863,95586.0,95585.0,0.21368316]
[1739307923151,0.81358863,95586.0,95585.0,0.21368316]
[1739307923586,0.7969023,95586.0,95585.0,0.21368316]
[1739307923988,0.7989023,95586.0,95585.0,0.21368316]
[1739307924192,0.7989023,95586.0,95585.0,0.21568316]
[1739307924392,0.76448681,95586.0,95585.0,0.21368316]
[1739307924612,0.76448681,95586.0,95585.0,0.21768316]
[1739307924823,0.76548681,95586.0,95585.0,0.21968316]
[1739307925945,0.78188437,95586.0,95585.0,0.21968316]
[1739307926123,0.78088437,95586.0,95585.0,0.21368316]
[1739307926330,0.78088437,95586.0,95585.0,0.21668316]
[1739307926528,0.78188437,95586.0,95585.0,0.22268316]
[1739307927717,0.78188437,95586.0,95585.0,0.22290702]
[1739307927934,0.78199097,95586.0,95585.0,0.22290702]
[1739307930172,0.78199097,95586.0,95585.0,0.21390702]
[1739307930173,0.78099097,95586.0,95585.0,0.21390702]